[Event "NY Presidents Day IM-B 2024"]
[Site "New York"]
[Date "2024.02.18"]
[Round "5.5"]
[White "Pang, Qi"]
[Black "Poliannikov, Danila"]
[Result "0-1"]
[ECO "A34"]
[WhiteElo "2148"]
[BlackElo "2282"]
[Annotator "RC"]
[PlyCount "132"]
[EventDate "2024.02.14"]
[EventType "schev"]
[EventCountry "USA"]
[SourceTitle "playchess.com"]
[Source "ChessBase"]
[SourceQuality "1"]
[TimeControl "5400+30"]

1. Nf3 {[%emt 0:04:01]} Nf6 {[%emt 0:00:06]} 2. c4 {[%emt 0:01:06]} c5 {[%emt 0:00:11]} 3. g3 {[%emt 0:00:26]} d5 {[%emt 0:00:11]} 4. cxd5 {[%emt 0:00:21]} Nxd5 {[%emt 0:00:05]} 5. Bg2 {[%emt 0:00:05]} Nc6 {[%emt 0:00:04]} 6. Nc3 {[%emt 0:02:54]} Nc7 {[%emt 0:00:09]} 7. O-O {[%emt 0:04:05]} e5 {[%emt 0:01:49]} 8. d3 {[%emt 0:00:09]} Be7 {[%emt 0:00:07]} 9. Bd2 {[%emt 0:00:05]} Bd7 {[%emt 0:03:04]} 10. Rc1 {[%emt 0:04:08]} O-O {[%emt 0:01:41]} 11. a3 {[%emt 0:03:30]} Rc8 {[%emt 0:01:11]} 12. Na4 {[%emt 0:06:16]} Na6 {[%emt 0:05:22]} 13. Nc3 {[%emt 0:03:57]} Be6 {[%emt 0:02:54]} 14. Ne4 {[%emt 0:16:28]} f6 {[%emt 0:03:31]} 15. h4 {[%emt 0:07:28]} Qd7 {[%emt 0:03:18]} 16. Kh2 {[%emt 0:01:00]} h6 {[%emt 0:02:35]} 17. Qa4 {[%emt 0:04:40]} Rfd8 {[%emt 0:12:50]} 18. Be3 {[%emt 0:02:42]} Nd4 {[%emt 0:01:09]} 19. Qxd7 {[%emt 0:00:10]} Bxd7 {[%emt 0:00:25]} 20. Nc3 {[%emt 0:00:32]} Bc6 {[%emt 0:05:18]} 21. Nd2 {[%emt 0:01:30]} Bxg2 {[%emt 0:00:29]} 22. Kxg2 {[%emt 0:00:02]} Nc7 {[%emt 0:00:27]} 23. Bxd4 {[%emt 0:08:55]} exd4 {[%emt 0:01:58]} 24. Nce4 {[%emt 0:03:49]} Ne6 {[%emt 0:03:19]} 25. g4 {[%emt 0:00:14]} h5 {[%emt 0:04:27]} 26. gxh5 {[%emt 0:00:49]} Nf4+ {[%emt 0:05:27]} 27. Kf3 {[%emt 0:00:28]} Nxh5 {[%emt 0:00:04]} 28. Ng3 {[%emt 0:00:17]} Nxg3 {[%emt 0:02:07]} 29. fxg3 {[%emt 0:00:42]} f5 {[%emt 0:01:42]} 30. Kg2 {[%emt 0:01:29]} g6 {[%emt 0:01:50]} 31. Nc4 {[%emt 0:02:11]} Kg7 {[%emt 0:02:50]} 32. a4 {[%emt 0:00:17]} Re8 {[%emt 0:01:53]} 33. Rf2 {[%emt 0:03:45]} Rc6 {[%emt 0:01:34]} 34. Rc2 {[%emt 0:03:01]} Re6 {[%emt 0:00:51]} 35. Kf3 {[%emt 0:01:12]} Bd8 {[%emt 0:01:20]} 36. Rf1 {[%emt 0:01:39]} b6 {[%emt 0:02:03]} 37. Ra1 {[%emt 0:01:30]} a6 {[%emt 0:01:06]} 38. Ra3 {[%emt 0:00:23]} Bc7 {[%emt 0:04:16]} 39. Ra1 {[%emt 0:01:08]} Kh6 {[%emt 0:08:59]} 40. Rg1 {[%emt 0:00:20]} Kh5 {[%emt 0:00:30]} 41. b3 {[%emt 0:05:31]} Bb8 {[%emt 0:02:17]} 42. Rg2 {[%emt 0:01:21]} R8e7 {[%emt 0:02:43]} 43. Rg1 {[%emt 0:02:12]} b5 {[%emt 0:00:29]} 44. axb5 {[%emt 0:00:04]} axb5 {[%emt 0:00:02]} 45. Na3 {[%emt 0:00:04]} Re3+ {[%emt 0:00:14]} 46. Kf2 {[%emt 0:00:03]} Kg4 {[%emt 0:00:24]} 47. Nxb5 {[%emt 0:00:06]} Bxg3+ {[%emt 0:00:30]} 48. Rxg3+ {[%emt 0:00:37]} Rxg3 {[%emt 0:00:10]} 49. Rxc5 {[%emt 0:00:02]} Rd7 {[%emt 0:01:23]} 50. Rc4 {[%emt 0:00:16]} Kxh4 {[%emt 0:00:43]} 51. Nxd4 {[%emt 0:00:06]} Kh3 {[%emt 0:04:27]} 52. Nf3 {[%emt 0:03:40]} Rg2+ {[%emt 0:00:08]} 53. Kf1 {[%emt 0:00:26]} Ra7 {[%emt 0:01:01]} 54. Ra4 {[%emt 0:00:14]} Re7 {[%emt 0:03:47]} 55. Ng1+ {[%emt 0:03:03]} Rxg1+ {[%emt 0:00:25]} 56. Kxg1 {[%emt 0:00:03]} Rxe2 {[%emt 0:00:04]} 57. Ra5 {[%emt 0:01:31]} Kg4 {[%emt 0:00:48]} 58. b4 {[%emt 0:00:30]} f4 {[%emt 0:00:42]} 59. b5 {[%emt 0:00:29]} Kg3 {[%emt 0:00:18]} 60. Kf1 {[%emt 0:00:12]} Rb2 {[%emt 0:00:09]} 61. b6 {[%emt 0:02:03]} Rxb6 {[%emt 0:00:17]} 62. Rg5+ {[%emt 0:00:10]} Kh4 {[%emt 0:00:13]} 63. Rd5 {[%emt 0:00:13]} g5 {[%emt 0:00:13]} 64. Rf5 {[%emt 0:00:18]} Kg4 {[%emt 0:00:09]} 65. Rd5 {[%emt 0:00:08]} Kf3 {[%emt 0:00:05]} 66. Kg1 {[%emt 0:00:20]} Rb1+ {[%emt 0:00:10]} 0-1

[Event "NY Presidents Day IM-B 2024"]
[Site "New York"]
[Date "2024.02.18"]
[Round "5.6"]
[White "Graif, William"]
[Black "Wongso, Steve"]
[Result "1-0"]
[ECO "C56"]
[WhiteElo "2302"]
[BlackElo "2229"]
[Annotator "TA"]
[PlyCount "27"]
[EventDate "2024.02.14"]
[EventType "schev"]
[EventCountry "USA"]
[SourceTitle "playchess.com"]
[Source "ChessBase"]
[SourceQuality "1"]
[TimeControl "5400+30"]

{[%evp 11,27,0,0,-13,75,62,68,42,75,62,84,93,101,100,146,144,592,593]} 1. e4 {[%emt 0:03:16]} e5 {[%emt 0:00:03][%cal Be7e5,Be5d4][%mdl 32]} 2. Nf3 {[%emt 0:00:06]} Nc6 {[%emt 0:00:05]} 3. Bc4 {[%emt 0:00:23]} Nf6 {[%emt 0:00:06]} 4. d4 {[%emt 0:01:34]} exd4 {[%emt 0:00:07]} 5. e5 {[%emt 0:00:08]} d5 {[%emt 0:00:33]} 6. Bb5 {[%emt 0:00:16]} Nd7 {[%emt 0:00:34]} 7. O-O {[%emt 0:10:31][%cal Of1e1]} a6 {[%emt 0:09:15] [#]} (7... Be7 $11) 8. Bxc6 $1 $16 {[%emt 0:00:56]} bxc6 {[%emt 0:00:01]} 9. Nxd4 {[%emt 0:23:47] White is slightly better.} (9. Bg5 $5 Be7 10. Bxe7 Qxe7 11. Nxd4 $14 (11. Qxd4 O-O $11)) 9... Nb8 {[%emt 0:00:07] [#]} 10. e6 $1 {[%emt 0:11:09] White is more active.} Qf6 {[%emt 0:06:47]} (10... Bxe6 11. Nxe6) 11. exf7+ {[%emt 0:04:04]} Kxf7 {[%emt 0:00:32]} 12. c4 {[%emt 0:09:23]} h6 {[%emt 0:16:59]} (12... Bc5 $142) 13. cxd5 {[%emt 0:01:45]} cxd5 $2 {[%emt 0:00:15][%mdl 8192]} (13... Bd6 $16 {is tougher.}) 14. Qh5+ {[%emt 0:00:56] White took control after the opening.   Weighted Error Value: White=0.03 (flawless) /Black=1.13.  Loses game:     	---       	Black=1      Mistake:       	---       	Black=2      Inaccurate:     	White=1     	Black=1      OK:         	White=4     	---        Best:        	White=1     	---        Strong:       	White=1     	---} 1-0

[Event "NY Presidents Day IM-B 2024"]
[Site "New York"]
[Date "2024.02.18"]
[Round "6.1"]
[White "Rajesh, C.S."]
[Black "Xu, Grant"]
[Result "1/2-1/2"]
[ECO "A21"]
[WhiteElo "2218"]
[BlackElo "2313"]
[Annotator "TA"]
[PlyCount "185"]
[EventDate "2024.02.14"]
[EventType "schev"]
[EventCountry "USA"]
[SourceTitle "playchess.com"]
[Source "ChessBase"]
[SourceQuality "1"]
[TimeControl "5400+30"]

{[%evp 20,185,12,23,16,23,24,22,21,25,27,12,14,8,18,14,35,12,27,0,0,14,10,0,20,-27,0,0,0,-16,-16,-14,-10,-14,-9,-7,-14,-41,-36,-59,-33,-35,-32,-97,-97,-94,-44,-148,-124,-118,-114,-148,-148,-148,-148,-148,-148,-148,-148,-148,-148,-148,-148,-148,-148,-148,-148,-148,-148,-148,-148,-148,-148,-148,-148,-148,0,-148,-148,-148,-148,-148,-148,-148,-148,-148,-148,-141,-141,-141,-141,-141,-148,-148,-148,-235,-235,-235,-235,-235,-235,-235,-235,-235,-235,-235,0,-235,-20,-20,-20,-20,-20,-20,-20,-20,-20,-20,-20,-20,-20,-20,-20,-20,-20,-20,-20,-20,-20,-20,-20,-20,-20,-20,-20,-20,-20,-20,-20,-20,-20,-24,-20,-20,-20,-24,-20,-20,-20,-20,-20,-20,-20,-24,-24,-24,-24,-24,-24,-24,-24,-24,-24,-24,-24,-24,-24,-24]} 1. Nf3 {[%emt 0:00:10]} f5 {[%emt 0:00:31]} 2. c4 {[%emt 0:00:56]} Nf6 {[%emt 0:00:19]} 3. Nc3 {[%emt 0:00:07]} g6 {[%emt 0:00:25]} 4. g3 {[%emt 0:00:13]} Bg7 {[%emt 0:00:20]} 5. Bg2 {[%emt 0:00:01]} O-O {[%emt 0:00:15]} 6. O-O {[%emt 0:00:17]} d6 {[%emt 0:00:35]} 7. Rb1 {[%emt 0:00:44]} e5 {[%emt 0:02:31]} 8. d3 {[%emt 0:00:15]} a5 {[%emt 0:01:27]} 9. a3 {[%emt 0:00:13]} h6 {[%emt 0:01:28]} 10. b4 {[%emt 0:00:18]} axb4 {[%emt 0:00:43]} 11. axb4 {[%emt 0:00:02]} Be6 {[%emt 0:00:43]} 12. b5 {[%emt 0:03:56]} c6 {[%emt 0:02:46]} 13. Qb3 {[%emt 0:05:07]} Nbd7 {[%emt 0:01:05] Die Stellung ist ausgeglichen.} 14. Ba3 {[%emt 0:00:51]} Qc7 {[%emt 0:01:07]} 15. Rfc1 {[%emt 0:00:29]} Rfb8 {[%emt 0:03:39]} 16. Nd2 {[%emt 0:12:43]} Bf8 {[%emt 0:01:46]} 17. Ra1 {[%emt 0:08:40]} g5 {[%emt 0:02:58]} 18. Qd1 {[%emt 0:04:23][%cal Oc3d5]} (18. Nd5 $5 Qc8 (18... cxd5 19. cxd5 Nc5 20. Bxc5 $16) 19. Qb1 $14) 18... Rc8 {[%emt 0:02:51]} 19. Bb4 {[%emt 0:06:20]} Rxa1 {[%emt 0:04:21]} 20. Rxa1 {[%emt 0:00:02]} d5 {[%emt 0:00:13]} 21. Bxf8 {[%emt 0:01:33]} Kxf8 {[%emt 0:00:27]} 22. Rc1 {[%emt 0:10:53]} (22. Ra7 $142) 22... dxc4 {[%emt 0:13:07]} 23. bxc6 {[%emt 0:02:08]} bxc6 {[%emt 0:00:09]} 24. Nxc4 {[%emt 0:00:21]} Bxc4 {[%emt 0:00:15]} 25. dxc4 {[%emt 0:00:02]} e4 {[%emt 0:58:59]} 26. Qd4 {[%emt 0:07:53]} (26. Ra1 {hält die Spannung aufrecht.} Kf7 27. Qd4 Qb6 28. Qd6) 26... Qe5 {[%emt 0:00:00]} 27. Qxe5 {[%emt 0:07:15]} Nxe5 {[%emt 0:00:00]} 28. Bh3 {[%emt 0:00:04]} g4 {[%emt 0:00:00]} (28... Nxc4 29. Bxf5 Re8 30. Na4 $16 (30. Nxe4 Nxe4 31. Rxc4 Nd6 $14)) 29. Bg2 {[%emt 0:01:24]} Rd8 {[%emt 0:00:00][%cal Od8d4]} (29... Nxc4 $6 30. Nxe4 fxe4 31. Rxc4 $16) 30. h3 {[%emt 0:03:11]} h5 {[%emt 0:00:00]} ({Ein No Go ist} 30... Nxc4 $6 31. hxg4 (31. Nxe4 fxe4 32. Rxc4 Rd1+ 33. Kh2 Rd2 $11) 31... e3 (31... Nxg4 32. Nxe4 Nb2 33. Nc3 $16) 32. gxf5 $16 (32. Bxc6 exf2+ 33. Kxf2 Nxg4+ 34. Kg1 Nce3 $11)) 31. hxg4 {[%emt 0:01:05]} ({Günstiger ist} 31. Nd1 $1 $15) 31... hxg4 $17 {[%emt 0:00:00][%cal Of8f7]} 32. Nd1 {[%emt 0:00:49] [#]} Nxc4 {[%emt 0:00:00]} 33. Bf1 {[%emt 0:00:06]} (33. Kh2 $1 $15) 33... Ke7 {[%emt 0:00:00]} 34. Rxc4 {[%emt 0:07:11]} Rxd1 {[%emt 0:00:00]} 35. Rxc6 {[%emt 0:00:01][%mdl 4096] Endspiel. [#] KRB-KRN} e3 $1 {[%emt 0:00:00][%mdl 512] ...Ne4 ist eine echte Drohung.} 36. Rc4 {[%emt 0:00:03]} (36. Rc7+ Ke6) 36... Ne4 {[%emt 0:00:00]} 37. Rxe4+ {[%emt 0:00:42]} fxe4 {[%emt 0:00:00]} 38. fxe3 {[%emt 0:00:05] KR-KB} Kd6 {[%emt 0:00:00]} 39. Kf2 {[%emt 0:00:01]} Kd5 {[%emt 0:00:00]} 40. Bg2 {[%emt 0:00:21]} Ra1 {[%emt 0:00:00]} 41. Bf1 {[%emt 0:00:05]} Ra7 {[%emt 0:00:00]} 42. Bg2 {[%emt 0:00:21]} Rf7+ {[%emt 0:00:00]} 43. Kg1 {[%emt 0:00:28]} Rf8 {[%emt 0:00:00]} 44. Bh1 {[%emt 0:00:14]} Re8 {[%emt 0:00:00]} 45. Kf2 {[%emt 0:00:04]} Kc4 {[%emt 0:00:00]} 46. Ke1 {[%emt 0:00:18]} Kc3 {[%emt 0:00:00]} 47. Bg2 {[%emt 0:00:44]} Kc4 {[%emt 0:00:00]} ({Vorzuziehen ist} 47... Re5 $17 48. Bh1 Re8) 48. Kf2 {[%emt 0:00:27]} (48. Bh1 $1 $11 {war der einzige Weg, das Gleichgewicht zu halten.}) 48... Re6 {[%emt 0:00:00]} 49. Ke1 {[%emt 0:00:56]} Kd5 {[%emt 0:00:00]} 50. Kf2 {[%emt 0:00:10]} Ra6 {[%emt 0:00:00]} 51. Bh1 {[%emt 0:02:30]} Ra4 {[%emt 0:00:00]} 52. Bg2 {[%emt 0:00:14]} Rc4 {[%emt 0:00:00]} 53. Ke1 {[%emt 0:00:31]} Kc5 {[%emt 0:00:00]} 54. Kd2 {[%emt 0:08:39]} Kb4 {[%emt 0:00:00]} 55. Bh1 {[%emt 0:01:48]} Kb3 {[%emt 0:00:00]} 56. Bg2 {[%emt 0:00:01]} Ra4 {[%emt 0:00:00]} 57. Ke1 {[%emt 0:03:43]} (57. Bh1 $17) 57... Kc2 $19 {[%emt 0:00:00]} 58. Kf1 {[%emt 0:00:15]} Kd2 {[%emt 0:00:00]} 59. Kf2 {[%emt 0:00:01]} Rb4 {[%emt 0:00:00]} 60. Bh1 {[%emt 0:00:06]} Kd1 {[%emt 0:00:00]} 61. Kf1 {[%emt 0:02:06]} Ra4 {[%emt 0:00:00]} 62. Bg2 {[%emt 0:00:37]} Kd2 {[%emt 0:11:06]} 63. Kf2 {[%emt 0:00:04]} Ra3 $2 {[%emt 0:04:50]} ({Besser ist} 63... Ra8 $19 {( -> ...Rf8+)} 64. Bxe4 Rf8+ 65. Kg1 Kxe2 (65... Kxe3 66. Bc6 $17)) 64. Bxe4 $11 {[%emt 0:00:33]} Rxe3 {[%emt 0:00:04]} 65. Bf5 $1 {[%emt 0:04:11]} Rxe2+ {[%emt 0:00:07]} 66. Kg1 {[%emt 0:00:01]} Re5 {[%emt 0:00:47]} 67. Bxg4 {[%emt 0:01:57]} Rg5 {[%emt 0:00:05]} 68. Be6 {[%emt 0:00:32]} Rxg3+ {[%emt 0:00:07]} 69. Kf2 {[%emt 0:00:02]} Rg6 {[%emt 0:00:09]} 70. Bd5 {[%emt 0:00:16]} Rf6+ {[%emt 0:00:08]} 71. Kg3 {[%emt 0:00:03]} Ke3 {[%emt 0:00:18]} 72. Kg4 {[%emt 0:00:05]} Rd6 {[%emt 0:00:22]} 73. Bb7 {[%emt 0:00:08]} Rd7 {[%emt 0:01:09]} 74. Bc6 {[%emt 0:00:06]} Rf7 {[%emt 0:00:19]} 75. Bd5 {[%emt 0:00:12]} Rf1 {[%emt 0:00:21]} 76. Bc6 {[%emt 0:00:05]} Kd4 {[%emt 0:01:04]} 77. Bb7 {[%emt 0:00:10]} Ke5 {[%emt 0:00:06]} 78. Bc6 {[%emt 0:00:09]} Rg1+ {[%emt 0:00:15]} 79. Kf3 {[%emt 0:00:07]} Rc1 {[%emt 0:00:15]} 80. Be8 {[%emt 0:00:55]} Rc8 {[%emt 0:01:07]} 81. Bd7 {[%emt 0:00:22]} Rc7 {[%emt 0:00:21]} 82. Be8 {[%emt 0:01:05]} Re7 {[%emt 0:00:14]} 83. Bc6 {[%emt 0:00:14]} Rf7+ {[%emt 0:00:09]} 84. Kg4 {[%emt 0:00:15]} Rf4+ {[%emt 0:00:23]} 85. Kg3 {[%emt 0:00:18]} Kf5 {[%emt 0:00:16]} 86. Bd7+ {[%emt 0:00:27]} Kg5 {[%emt 0:00:02] Schwarz hat minimalen Vorteil.} 87. Bc6 {[%emt 0:00:17]} Rc4 {[%emt 0:00:06]} 88. Bd5 {[%emt 0:00:06]} Rc5 {[%emt 0:00:27]} 89. Bb7 {[%emt 0:00:19]} Rc3+ {[%emt 0:00:10]} 90. Kf2 {[%emt 0:00:01]} Kf4 {[%emt 0:00:11]} 91. Ke2 {[%emt 0:00:01]} Rb3 {[%emt 0:00:48]} 92. Bc6 {[%emt 0:00:05]} Ra3 {[%emt 0:00:14]} 93. Bb7 {[%emt 0:00:10] Schwarz hatte alle Gewinnchancen.   Gewichteter Fehlerwert: Weiß=0.17 (sehr präzise) /Schwarz=0.07 (makellos) .  Gewinn verpasst:   	---       	Schwarz=1     Fehler:       	Weiß=5     	Schwarz=2     Ungenau:       	Weiß=1     	Schwarz=2     OK:         	Weiß=23    	Schwarz=33    Bester:       	Weiß=12    	Schwarz=2     Stark:        	Weiß=1     	---        Brilliant:      	---       	Schwarz=1} 1/2-1/2

[Event "NY Presidents Day IM-B 2024"]
[Site "New York"]
[Date "2024.02.18"]
[Round "6.2"]
[White "Sun, Ryan"]
[Black "Poliannikov, Danila"]
[Result "1-0"]
[ECO "C54"]
[WhiteElo "2217"]
[BlackElo "2282"]
[Annotator "TA"]
[PlyCount "61"]
[EventDate "2024.02.14"]
[EventType "schev"]
[EventCountry "USA"]
[SourceTitle "playchess.com"]
[Source "ChessBase"]
[SourceQuality "1"]
[TimeControl "5400+30"]

{[%evp 12,61,16,12,23,15,23,18,29,27,26,25,29,8,27,19,26,23,38,39,50,49,58,51,45,56,60,54,62,49,54,39,69,68,87,87,70,1,71,69,170,95,118,116,256,213,319,335,331,318,585,545]} 1. e4 {[%emt 0:01:09]} e5 {[%emt 0:00:03]} 2. Nf3 {[%emt 0:00:33]} Nc6 {[%emt 0:00:03]} 3. Bc4 {[%emt 0:00:18]} Bc5 {[%emt 0:00:04]} 4. O-O {[%emt 0:00:36]} Nf6 {[%emt 0:00:02]} 5. d3 {[%emt 0:00:10]} O-O {[%emt 0:00:09]} 6. Re1 {[%emt 0:00:03]} d6 {[%emt 0:01:04]} 7. c3 {[%emt 0:00:07]} Bb6 {[%emt 0:00:31]} 8. h3 {[%emt 0:00:26]} h6 {[%emt 0:02:37]} 9. Nbd2 {[%emt 0:01:47][%cal Bb1d2,Bd2f1,Bf1g3][%mdl 32]} Ne7 {[%emt 0:00:49] Die Stellung ist ausgeglichen.} 10. Bb3 {[%emt 0:01:58]} c6 {[%emt 0:01:21]} 11. Nf1 {[%emt 0:00:56]} Ng6 {[%emt 0:00:46]} 12. Ng3 {[%emt 0:00:20]} Re8 {[%emt 0:05:30]} 13. d4 {[%emt 0:02:16]} Qc7 {[%emt 0:10:53]} 14. Bc2 {[%emt 0:01:55]} Be6 {[%emt 0:02:26]} 15. Be3 {[%emt 0:02:31]} Rad8 {[%emt 0:00:46]} 16. a4 {[%emt 0:06:56]} a5 {[%emt 0:02:41]} 17. Qe2 {[%emt 0:00:53]} Bc8 {[%emt 0:15:50]} 18. Rad1 {[%emt 0:02:56]} Be6 {[%emt 0:13:13]} 19. Kh1 {[%emt 0:12:41]} Kh8 {[%emt 0:01:10]} 20. Qf1 {[%emt 0:14:46]} Kg8 {[%emt 0:01:34]} 21. c4 {[%emt 0:07:39]} exd4 {[%emt 0:03:46]} 22. Nxd4 {[%emt 0:00:20]} ({Viel schlechter ist} 22. Bxd4 Ne5 $11) 22... Bc5 {[%emt 0:02:08]} 23. f4 {[%emt 0:06:11] Nxe6 ist eine echte Drohung.} Bc8 {[%emt 0:00:12]} 24. Qd3 {[%emt 0:01:28]} (24. b3 $14) 24... Bb4 {[%emt 0:02:11]} (24... Qb6 $11 {bleibt in der Remisbreite.}) 25. Rf1 $16 {[%emt 0:00:28]} Qe7 {[%emt 0:12:03] [#]} ({Besser ist} 25... Bc5 $14) 26. Bc1 {[%emt 0:02:43]} ({Günstiger ist} 26. Ndf5 $1 $18 {[%cal Rf5e7]} Bxf5 27. Nxf5) 26... Qc7 {[%emt 0:01:02]} 27. b3 {[%emt 0:01:31]} Ne5 {[%emt 0:02:16] Das kostet Schwarz die Partie.} 28. Qe2 {[%emt 0:04:13]} Ned7 {[%emt 0:00:12]} (28... Ng6 $142 29. Bb2 d5) 29. Ndf5 $18 {[%emt 0:01:36]} d5 {[%emt 0:05:13]} 30. e5 {[%emt 0:00:57]} ({Bloß nicht} 30. cxd5 cxd5 31. e5 Nf8 $18) 30... Nc5 $2 {[%emt 0:00:44] [#]} (30... Nxe5 31. fxe5 Qxe5) 31. Nxg7 $1 {[%emt 0:00:43][%mdl 512] Gewichteter Fehlerwert: Weiß=0.12 (sehr präzise) /Schwarz=0.37.  Fehler:       	Weiß=2     	Schwarz=5     Ungenau:       	---       	Schwarz=1     OK:         	Weiß=10    	Schwarz=5     Bester:       	Weiß=2     	---        Brilliant:      	Weiß=1     	---} 1-0

[Event "NY Presidents Day IM-B 2024"]
[Site "New York"]
[Date "2024.02.18"]
[Round "6.3"]
[White "Lee, Megan"]
[Black "Wongso, Steve"]
[Result "1-0"]
[ECO "C74"]
[WhiteElo "2267"]
[BlackElo "2229"]
[Annotator "TA"]
[PlyCount "58"]
[EventDate "2024.02.14"]
[EventType "schev"]
[EventCountry "USA"]
[SourceTitle "playchess.com"]
[Source "ChessBase"]
[SourceQuality "1"]
[TimeControl "5400+30"]

{[%evp 11,58,0,0,0,109,110,241,160,197,193,223,218,238,169,274,255,256,258,253,245,299,299,419,414,425,437,400,408,457,471,451,258,464,452,472,464,654,677,661,678,749,627,753,627,1321,782,1150,1156,1308]} 1. e4 {[%emt 0:00:02]} e5 {[%emt 0:00:04]} 2. Nf3 {[%emt 0:00:04]} Nc6 {[%emt 0:00:04]} 3. Bb5 {[%emt 0:00:05]} a6 {[%emt 0:00:04]} 4. Ba4 {[%emt 0:00:04]} d6 {[%emt 0:00:04]} 5. c3 {[%emt 0:02:03]} f5 {[%emt 0:00:05]} 6. d4 {[%emt 0:10:39]} fxe4 {[%emt 0:24:11]} 7. Nxe5 {[%emt 0:08:36]} Nge7 {[%emt 0:34:58]} (7... dxe5 $11 {hält das Gleichgewicht.} 8. Qh5+ Ke7 9. Bxc6 bxc6 10. Qg5+ Ke8 11. Qh5+ Ke7 12. Qg5+ Ke8 13. Qh5+ Ke7) 8. Nxc6 $16 {[%emt 0:02:31]} bxc6 {[%emt 0:00:46]} (8... Nxc6 $16 9. Qh5+ g6) 9. Bg5 {[%emt 0:00:40] Weiß steht deutlich besser.} Bd7 {[%emt 0:01:27]} 10. O-O {[%emt 0:07:22]} Qb8 {[%emt 0:09:50]} 11. Nd2 {[%emt 0:07:18]} d5 {[%emt 0:01:52]} 12. Rb1 {[%emt 0:03:02]} Ng6 {[%emt 0:05:17]} (12... Nf5 {war einen Versuch wert.}) 13. f3 {[%emt 0:01:21][%cal Bf2f3,Bf3f4,Bf4f5][%mdl 32]} e3 {[%emt 0:00:51]} 14. Qe2 {[%emt 0:02:16]} (14. Bxe3 $6 Bd6 15. Nb3 Qb6 $18) 14... Bd6 {[%emt 0:00:37] Pariert f4.} 15. Qxe3+ {[%emt 0:00:06]} Kf7 {[%emt 0:00:04]} 16. f4 {[%emt 0:04:16] Und jetzt f5 wäre schön.} h6 {[%emt 0:02:39] [#]} (16... Re8 $142 17. Qf3 Rf8) 17. f5 $1 $18 {[%emt 0:08:00]} Bxh2+ {[%emt 0:00:28]} 18. Kxh2 {[%emt 0:01:10]} hxg5+ {[%emt 0:00:05]} 19. Kg1 {[%emt 0:00:23]} Nh4 {[%emt 0:02:38] [#]} 20. Bxc6 $1 {[%emt 0:01:36][%mdl 512]} Bxc6 {[%emt 0:01:17]} 21. Qe6+ {[%emt 0:00:19]} ({Lieber nicht} 21. Qxg5 Qd8 22. Qxd8 Raxd8 $11) 21... Kf8 {[%emt 0:00:04]} 22. Qxc6 {[%emt 0:02:07] Weiß steht klar auf Gewinn.} Qe8 {[%emt 0:03:39]} 23. Qc5+ {[%emt 0:00:59]} ({Finger weg von} 23. Qxc7 Qe3+ 24. Rf2 Re8) 23... Kg8 {[%emt 0:00:04]} (23... Qe7 $142 24. Qxe7+ (24. Qxd5 Rd8 $18) 24... Kxe7) 24. Qxd5+ {[%emt 0:00:17]} Kh7 {[%emt 0:00:04][%cal Bg8h7,Bh7h6,Bh6h5][%mdl 32]} 25. Ne4 {[%emt 0:04:53][%cal Bd2e4,Be4g5,Bg5f7][%mdl 32]} c6 {[%emt 0:01:47]} 26. Nxg5+ {[%emt 0:01:53]} Kh6 {[%emt 0:00:04]} 27. Nf7+ {[%emt 0:00:16]} Kh5 {[%emt 0:00:06]} 28. Qe6 {[%emt 0:00:38] Weiss droht Rf4 und Matt.} Qxe6 {[%emt 0:02:20]} 29. fxe6 {[%emt 0:00:05]} g6 {[%emt 0:00:20] Schwarz wurde aus der Eröffnung heraus überspielt.   Gewichteter Fehlerwert: Weiß=0.19 (sehr präzise) /Schwarz=0.56.  Fehler:       	---       	Schwarz=5     Ungenau:       	Weiß=1     	Schwarz=1     OK:         	Weiß=11    	Schwarz=3     Bester:       	Weiß=1     	Schwarz=2     Stark:        	Weiß=1     	---} 1-0